[Event "Titled Tuesday Blitz March 01 Early 2022"]
[White "Sinitsina, Anastassia"]
[Black "Golubev, Mikhail"]
[WhiteFideId "4504640"]
[BlackFideId "14100983"]
[WhiteElo "2144"]
[BlackElo "2374"]
[Result "1-0"]
[Round "10"]
[TimeControl "180+1"]
[Date "2022.03.01"]
[WhiteClock "0:00:04"]
[BlackClock "0:00:03"]

1. Nf3 {[%clk 0:03:00]}  d6 {[%clk 0:02:58]} 2. d4 {[%clk 0:03:00]}  Nf6 {[%clk 0:02:57]} 3. g3 {[%clk 0:03:00]}  g6 {[%clk 0:02:55]} 4. Bg2 {[%clk 0:03:01]}  Bg7 {[%clk 0:02:56]} 5. O-O {[%clk 0:03:00]}  O-O {[%clk 0:02:56]} 6. b3 {[%clk 0:03:00]}  a5 {[%clk 0:02:55]} 7. a4 {[%clk 0:02:59]}  Nc6 {[%clk 0:02:43]} 8. Bb2 {[%clk 0:02:57]}  Bf5 {[%clk 0:02:41]} 9. Nbd2 {[%clk 0:02:51]}  Ne4 {[%clk 0:02:34]} 10. Nh4 {[%clk 0:02:36]}  Nxd2 {[%clk 0:02:31]} 11. Qxd2 {[%clk 0:02:18]}  Bd7 {[%clk 0:02:30]} 12. Nf3 {[%clk 0:02:15]}  e5 {[%clk 0:02:11]} 13. dxe5 {[%clk 0:02:14]}  dxe5 {[%clk 0:02:11]} 14. Rad1 {[%clk 0:02:12]}  Bf5 {[%clk 0:01:41]} 15. Qc1 {[%clk 0:02:09]}  Qc8 {[%clk 0:01:33]} 16. Nh4 {[%clk 0:01:53]}  Bh3 {[%clk 0:01:32]} 17. Qe3 {[%clk 0:01:45]}  Bxg2 {[%clk 0:01:30]} 18. Kxg2 {[%clk 0:01:44]}  Qe6 {[%clk 0:01:30]} 19. Qc5 {[%clk 0:01:35]}  Rfd8 {[%clk 0:01:23]} 20. Nf3 {[%clk 0:01:33]}  e4 {[%clk 0:01:17]} 21. Ng5 {[%clk 0:01:26]}  Qf5 {[%clk 0:01:09]} 22. Qxf5 {[%clk 0:01:24]}  gxf5 {[%clk 0:01:09]} 23. Bxg7 {[%clk 0:01:23]}  Kxg7 {[%clk 0:01:09]} 24. c3 {[%clk 0:01:04]}  Kf6 {[%clk 0:01:05]} 25. Nh3 {[%clk 0:01:02]}  Ne7 {[%clk 0:00:53]} 26. Nf4 {[%clk 0:01:01]}  Ke5 {[%clk 0:00:53]} 27. e3 {[%clk 0:00:57]}  Ng6 {[%clk 0:00:46]} 28. Rfe1 {[%clk 0:00:54]}  Nxf4+ {[%clk 0:00:40]} 29. gxf4+ {[%clk 0:00:44]}  Ke6 {[%clk 0:00:38]} 30. Kf1 {[%clk 0:00:44]}  c5 {[%clk 0:00:25]} 31. Ke2 {[%clk 0:00:43]}  Rac8 {[%clk 0:00:19]} 32. Rg1 {[%clk 0:00:42]}  Rxd1 {[%clk 0:00:18]} 33. Kxd1 {[%clk 0:00:39]}  Rd8+ {[%clk 0:00:18]} 34. Kc2 {[%clk 0:00:38]}  Kf6 {[%clk 0:00:16]} 35. Rb1 {[%clk 0:00:27]}  Rg8 {[%clk 0:00:15]} 36. b4 {[%clk 0:00:26]}  cxb4 {[%clk 0:00:11]} 37. cxb4 {[%clk 0:00:26]}  Rg2 {[%clk 0:00:07]} 38. bxa5 {[%clk 0:00:24]}  Rxf2+ {[%clk 0:00:07]} 39. Kc3 {[%clk 0:00:24]}  Re2 {[%clk 0:00:07]} 40. Rxb7 {[%clk 0:00:12]}  Rxe3+ {[%clk 0:00:06]} 41. Kc4 {[%clk 0:00:10]}  Re1 {[%clk 0:00:05]} 42. a6 {[%clk 0:00:09]}  Rc1+ {[%clk 0:00:04]} 43. Kb5 {[%clk 0:00:08]}  Rb1+ {[%clk 0:00:04]} 44. Kc6 {[%clk 0:00:07]}  Ra1 {[%clk 0:00:03]} 45. Kb5 {[%clk 0:00:04]}  e3 {[%clk 0:00:03]} 46. a7 {[%clk 0:00:04]}  e2 {[%clk 0:00:04]} 47. a8=Q {[%clk 0:00:04]}  e1=Q {[%clk 0:00:03]} 48. Qd8+ {[%clk 0:00:04]} 1-0


[Site "https://www.chess.com"]

[Event "Titled Tuesday Blitz March 01 Early 2022"]
[White "Sliwicki, Damian"]
[Black "Romanchuk, Viktor"]
[WhiteFideId "1127128"]
[BlackFideId "14109271"]
[WhiteElo "2084"]
[BlackElo "2242"]
[Result "1-0"]
[Round "10"]
[TimeControl "180+1"]
[Date "2022.03.01"]
[WhiteClock "0:00:36"]
[BlackClock "0:00:49"]

1. e4 {[%clk 0:03:00]}  e6 {[%clk 0:02:59]} 2. d4 {[%clk 0:02:57]}  d5 {[%clk 0:02:58]} 3. Nc3 {[%clk 0:02:57]}  dxe4 {[%clk 0:02:58]} 4. Nxe4 {[%clk 0:02:58]}  Nd7 {[%clk 0:02:58]} 5. Nf3 {[%clk 0:02:58]}  Ngf6 {[%clk 0:02:58]} 6. Nxf6+ {[%clk 0:02:59]}  Nxf6 {[%clk 0:02:59]} 7. Bd3 {[%clk 0:03:00]}  c5 {[%clk 0:02:59]} 8. O-O {[%clk 0:03:01]}  cxd4 {[%clk 0:02:59]} 9. Nxd4 {[%clk 0:03:01]}  Bc5 {[%clk 0:02:59]} 10. Nb3 {[%clk 0:03:01]}  Bd6 {[%clk 0:02:59]} 11. Bb5+ {[%clk 0:02:59]}  Bd7 {[%clk 0:02:48]} 12. Bxd7+ {[%clk 0:02:16]}  Qxd7 {[%clk 0:02:46]} 13. Bg5 {[%clk 0:02:16]}  Qc7 {[%clk 0:02:45]} 14. Bxf6 {[%clk 0:02:11]}  gxf6 {[%clk 0:02:39]} 15. Qh5 {[%clk 0:02:05]}  Be5 {[%clk 0:02:26]} 16. Rad1 {[%clk 0:01:57]}  Qxc2 {[%clk 0:02:18]} 17. f4 {[%clk 0:01:36]}  Bxb2 {[%clk 0:02:08]} 18. Rd2 {[%clk 0:01:27]}  Qc3 {[%clk 0:02:01]} 19. Rf3 {[%clk 0:01:16]}  Qb4 {[%clk 0:01:36]} 20. Rxb2 {[%clk 0:01:12]}  O-O-O {[%clk 0:01:28]} 21. Qc5+ {[%clk 0:01:11]}  Qxc5+ {[%clk 0:01:26]} 22. Nxc5 {[%clk 0:01:12]}  b6 {[%clk 0:01:21]} 23. Ne4 {[%clk 0:01:10]}  f5 {[%clk 0:01:18]} 24. Ng5 {[%clk 0:01:02]}  Rd7 {[%clk 0:01:17]} 25. Rc3+ {[%clk 0:01:02]}  Kd8 {[%clk 0:01:17]} 26. Rbc2 {[%clk 0:00:57]}  Ke7 {[%clk 0:01:06]} 27. Rc7 {[%clk 0:00:57]}  Rd8 {[%clk 0:01:05]} 28. Nxh7 {[%clk 0:00:55]}  f6 {[%clk 0:01:05]} 29. Kf2 {[%clk 0:00:44]}  Kf7 {[%clk 0:01:03]} 30. Rd2 {[%clk 0:00:37]}  Rxc7 {[%clk 0:00:57]} 31. Rxd8 {[%clk 0:00:38]}  Rc2+ {[%clk 0:00:55]} 32. Kg3 {[%clk 0:00:35]}  Rxa2 {[%clk 0:00:53]} 33. Rd7+ {[%clk 0:00:35]}  Kg6 {[%clk 0:00:49]} 34. Nf8+ {[%clk 0:00:35]}  Kh6 {[%clk 0:00:49]} 35. Rh7# {[%clk 0:00:36]} 1-0


[Site "https://www.chess.com"]

[Event "Titled Tuesday Blitz March 01 Early 2022"]
[White "Tari, Aryan"]
[Black "Kozak, Antoni"]
[WhiteFideId "1510045"]
[BlackFideId "21832030"]
[WhiteElo "2567"]
[BlackElo "2232"]
[Result "1-0"]
[Round "10"]
[TimeControl "180+1"]
[Date "2022.03.01"]
[WhiteClock "0:01:10"]
[BlackClock "0:00:03"]

1. e4 {[%clk 0:03:00]}  c6 {[%clk 0:02:55]} 2. d4 {[%clk 0:02:51]}  d5 {[%clk 0:02:55]} 3. e5 {[%clk 0:02:51]}  Bf5 {[%clk 0:02:55]} 4. h4 {[%clk 0:02:50]}  h5 {[%clk 0:02:55]} 5. c4 {[%clk 0:02:46]}  e6 {[%clk 0:02:54]} 6. Nc3 {[%clk 0:02:44]}  Ne7 {[%clk 0:02:53]} 7. Nge2 {[%clk 0:02:41]}  Nd7 {[%clk 0:02:53]} 8. Ng3 {[%clk 0:02:40]}  Bg6 {[%clk 0:02:53]} 9. cxd5 {[%clk 0:02:31]}  cxd5 {[%clk 0:02:40]} 10. Bg5 {[%clk 0:02:25]}  Qb6 {[%clk 0:02:36]} 11. Bb5 {[%clk 0:02:21]}  Nc6 {[%clk 0:02:36]} 12. O-O {[%clk 0:02:18]}  Bb4 {[%clk 0:02:14]} 13. Bxc6 {[%clk 0:02:10]}  Qxc6 {[%clk 0:02:05]} 14. Rc1 {[%clk 0:02:05]}  Qa6 {[%clk 0:02:05]} 15. Nce2 {[%clk 0:02:00]}  Bd3 {[%clk 0:01:51]} 16. a3 {[%clk 0:01:49]}  Ba5 {[%clk 0:01:43]} 17. b4 {[%clk 0:01:49]}  Bd8 {[%clk 0:01:20]} 18. Rc3 {[%clk 0:01:37]}  Bc4 {[%clk 0:01:11]} 19. Qd2 {[%clk 0:01:31]}  Bxg5 {[%clk 0:01:08]} 20. Qxg5 {[%clk 0:01:27]}  Bxe2 {[%clk 0:01:07]} 21. Qxg7 {[%clk 0:01:25]}  Rf8 {[%clk 0:01:06]} 22. Rfc1 {[%clk 0:01:25]}  Bc4 {[%clk 0:00:47]} 23. Nxh5 {[%clk 0:01:25]}  O-O-O {[%clk 0:00:47]} 24. Nf4 {[%clk 0:01:21]}  Rg8 {[%clk 0:00:45]} 25. Qxf7 {[%clk 0:01:19]}  Rgf8 {[%clk 0:00:43]} 26. Qxe6 {[%clk 0:01:17]}  Rxf4 {[%clk 0:00:41]} 27. Qxd5 {[%clk 0:01:17]}  b5 {[%clk 0:00:30]} 28. e6 {[%clk 0:01:17]}  Nb6 {[%clk 0:00:20]} 29. Qc6+ {[%clk 0:01:17]}  Kb8 {[%clk 0:00:20]} 30. e7 {[%clk 0:01:17]}  Qc8 {[%clk 0:00:10]} 31. exd8=Q {[%clk 0:01:14]}  Qxd8 {[%clk 0:00:11]} 32. Re3 {[%clk 0:01:13]}  Rf8 {[%clk 0:00:05]} 33. Rce1 {[%clk 0:01:12]}  Bd5 {[%clk 0:00:04]} 34. Qc5 {[%clk 0:01:11]}  Nc4 {[%clk 0:00:02]} 35. Qxb5+ {[%clk 0:01:11]}  Ka8 {[%clk 0:00:03]} 36. Re8 {[%clk 0:01:10]} 1-0


[Site "https://www.chess.com"]

[Event "Titled Tuesday Blitz March 01 Early 2022"]
[White "Ter-Sahakyan, Samvel"]
[Black "Seo, Jung Min"]
[WhiteFideId "13302531"]
[BlackFideId "1734687"]
[WhiteElo "2592"]
[BlackElo "2401"]
[Result "1/2-1/2"]
[Round "10"]
[TimeControl "180+1"]
[Date "2022.03.01"]
[WhiteClock "0:00:53"]
[BlackClock "0:01:16"]

1. e4 {[%clk 0:03:00]}  e5 {[%clk 0:02:59]} 2. Nf3 {[%clk 0:03:00]}  Nc6 {[%clk 0:03:00]} 3. Bc4 {[%clk 0:02:57]}  Bc5 {[%clk 0:02:58]} 4. c3 {[%clk 0:02:55]}  Nf6 {[%clk 0:02:58]} 5. d3 {[%clk 0:02:54]}  O-O {[%clk 0:02:57]} 6. O-O {[%clk 0:02:54]}  d6 {[%clk 0:02:55]} 7. h3 {[%clk 0:02:52]}  a6 {[%clk 0:02:52]} 8. Nbd2 {[%clk 0:02:49]}  Ba7 {[%clk 0:02:52]} 9. a4 {[%clk 0:02:45]}  Re8 {[%clk 0:02:51]} 10. b4 {[%clk 0:02:44]}  Be6 {[%clk 0:02:45]} 11. Bxe6 {[%clk 0:02:41]}  Rxe6 {[%clk 0:02:46]} 12. Re1 {[%clk 0:02:27]}  Ne7 {[%clk 0:02:44]} 13. d4 {[%clk 0:02:09]}  Ng6 {[%clk 0:02:43]} 14. d5 {[%clk 0:02:03]}  Re8 {[%clk 0:02:43]} 15. Nf1 {[%clk 0:02:00]}  c6 {[%clk 0:02:35]} 16. c4 {[%clk 0:01:57]}  cxd5 {[%clk 0:02:27]} 17. cxd5 {[%clk 0:01:57]}  Rc8 {[%clk 0:02:27]} 18. Ng3 {[%clk 0:01:45]}  Nd7 {[%clk 0:02:11]} 19. Qb3 {[%clk 0:01:38]}  Qc7 {[%clk 0:01:57]} 20. Nf5 {[%clk 0:01:32]}  Ne7 {[%clk 0:01:56]} 21. Nxe7+ {[%clk 0:01:27]}  Rxe7 {[%clk 0:01:56]} 22. Bg5 {[%clk 0:01:27]}  Ree8 {[%clk 0:01:53]} 23. Rac1 {[%clk 0:01:27]}  Qb8 {[%clk 0:01:52]} 24. Be3 {[%clk 0:01:26]}  Bxe3 {[%clk 0:01:50]} 25. Qxe3 {[%clk 0:01:26]}  Rxc1 {[%clk 0:01:40]} 26. Rxc1 {[%clk 0:01:25]}  Rc8 {[%clk 0:01:41]} 27. Ne1 {[%clk 0:01:23]}  Nf6 {[%clk 0:01:36]} 28. f3 {[%clk 0:01:15]}  g6 {[%clk 0:01:27]} 29. Kf2 {[%clk 0:01:10]}  Rc7 {[%clk 0:01:19]} 30. Nd3 {[%clk 0:01:06]}  Qc8 {[%clk 0:01:19]} 31. Rxc7 {[%clk 0:01:01]}  Qxc7 {[%clk 0:01:19]} 32. Qc1 {[%clk 0:01:01]}  Qb6+ {[%clk 0:01:18]} 33. Qe3 {[%clk 0:01:01]}  Qc7 {[%clk 0:01:19]} 34. Qc1 {[%clk 0:00:54]}  Qb6+ {[%clk 0:01:16]} 35. Qe3 {[%clk 0:00:53]}  Qc7 {[%clk 0:01:16]} 1/2-1/2


[Site "https://www.chess.com"]

[Event "Titled Tuesday Blitz March 01 Early 2022"]
[White "Tologon tegin, Semetei"]
[Black "Siva Mahadevan"]
[WhiteFideId "13800574"]
[BlackFideId "25043153"]
[WhiteElo "2258"]
[BlackElo "2203"]
[Result "1-0"]
[Round "10"]
[TimeControl "180+1"]
[Date "2022.03.01"]
[WhiteClock "0:00:06"]
[BlackClock "0:00:06"]

1. e4 {[%clk 0:02:58]}  c5 {[%clk 0:02:59]} 2. Nc3 {[%clk 0:02:56]}  Nc6 {[%clk 0:02:59]} 3. Bb5 {[%clk 0:02:56]}  Nd4 {[%clk 0:02:59]} 4. Nf3 {[%clk 0:02:57]}  g6 {[%clk 0:02:59]} 5. Nxd4 {[%clk 0:02:53]}  cxd4 {[%clk 0:02:59]} 6. Ne2 {[%clk 0:02:53]}  Bg7 {[%clk 0:03:00]} 7. O-O {[%clk 0:02:53]}  Nf6 {[%clk 0:02:59]} 8. d3 {[%clk 0:02:52]}  O-O {[%clk 0:02:43]} 9. h3 {[%clk 0:02:48]}  d6 {[%clk 0:02:38]} 10. f4 {[%clk 0:02:45]}  Qb6 {[%clk 0:02:33]} 11. Bc4 {[%clk 0:02:36]}  Nxe4 {[%clk 0:02:26]} 12. dxe4 {[%clk 0:02:35]}  d3+ {[%clk 0:02:26]} 13. Kh1 {[%clk 0:02:36]}  dxe2 {[%clk 0:02:26]} 14. Qxe2 {[%clk 0:02:36]}  Bd7 {[%clk 0:02:23]} 15. c3 {[%clk 0:02:35]}  Rac8 {[%clk 0:02:22]} 16. Be3 {[%clk 0:02:34]}  Qa5 {[%clk 0:02:18]} 17. f5 {[%clk 0:02:19]}  b5 {[%clk 0:02:06]} 18. Bb3 {[%clk 0:02:14]}  b4 {[%clk 0:02:03]} 19. cxb4 {[%clk 0:02:13]}  Qxb4 {[%clk 0:02:02]} 20. Qf3 {[%clk 0:02:04]}  Kh8 {[%clk 0:01:51]} 21. Bg5 {[%clk 0:02:00]}  Rce8 {[%clk 0:01:44]} 22. Rae1 {[%clk 0:01:38]}  Bc6 {[%clk 0:01:39]} 23. Bxe7 {[%clk 0:01:32]}  Rxe7 {[%clk 0:01:31]} 24. f6 {[%clk 0:01:33]}  Rc7 {[%clk 0:01:20]} 25. fxg7+ {[%clk 0:01:21]}  Kxg7 {[%clk 0:01:21]} 26. Qf6+ {[%clk 0:01:20]}  Kg8 {[%clk 0:01:21]} 27. Qh4 {[%clk 0:00:34]}  Re8 {[%clk 0:01:14]} 28. Rf4 {[%clk 0:00:34]}  d5 {[%clk 0:00:50]} 29. Ref1 {[%clk 0:00:27]}  Qb5 {[%clk 0:00:38]} 30. Qg3 {[%clk 0:00:17]}  Rce7 {[%clk 0:00:34]} 31. a4 {[%clk 0:00:13]}  Qc5 {[%clk 0:00:32]} 32. Kh2 {[%clk 0:00:10]}  Rb8 {[%clk 0:00:21]} 33. exd5 {[%clk 0:00:09]}  Bxd5 {[%clk 0:00:22]} 34. Bxd5 {[%clk 0:00:08]}  Qxd5 {[%clk 0:00:22]} 35. Rxf7 {[%clk 0:00:09]}  Rxf7 {[%clk 0:00:17]} 36. Qxb8+ {[%clk 0:00:08]}  Kg7 {[%clk 0:00:17]} 37. Rxf7+ {[%clk 0:00:07]}  Qxf7 {[%clk 0:00:18]} 38. Qe5+ {[%clk 0:00:07]}  Kg8 {[%clk 0:00:18]} 39. b4 {[%clk 0:00:08]}  Qb7 {[%clk 0:00:15]} 40. b5 {[%clk 0:00:07]}  Qb6 {[%clk 0:00:14]} 41. Qd5+ {[%clk 0:00:06]}  Kg7 {[%clk 0:00:14]} 42. Qe5+ {[%clk 0:00:06]}  Kg8 {[%clk 0:00:14]} 43. h4 {[%clk 0:00:06]}  Qa5 {[%clk 0:00:13]} 44. Qe6+ {[%clk 0:00:06]}  Kg7 {[%clk 0:00:13]} 45. Qe7+ {[%clk 0:00:06]}  Kg8 {[%clk 0:00:14]} 46. Qe8+ {[%clk 0:00:06]}  Kg7 {[%clk 0:00:14]} 47. Qd7+ {[%clk 0:00:06]}  Kg8 {[%clk 0:00:14]} 48. Qc8+ {[%clk 0:00:07]}  Kg7 {[%clk 0:00:14]} 49. Qc4 {[%clk 0:00:06]}  Qe1 {[%clk 0:00:08]} 50. Qd4+ {[%clk 0:00:05]}  Kg8 {[%clk 0:00:08]} 51. Qd8+ {[%clk 0:00:04]}  Kg7 {[%clk 0:00:08]} 52. Qc7+ {[%clk 0:00:04]}  Kg8 {[%clk 0:00:08]} 53. Qb8+ {[%clk 0:00:04]}  Kg7 {[%clk 0:00:07]} 54. Qxa7+ {[%clk 0:00:05]}  Kh6 {[%clk 0:00:08]} 55. Qd4 {[%clk 0:00:05]}  Qa5 {[%clk 0:00:08]} 56. b6 {[%clk 0:00:05]}  Qa8 {[%clk 0:00:06]} 57. Qf4+ {[%clk 0:00:05]}  Kg7 {[%clk 0:00:06]} 58. Qc7+ {[%clk 0:00:06]} 1-0


[Site "https://www.chess.com"]

[Event "Titled Tuesday Blitz March 01 Early 2022"]
[White "Van Foreest, Jorden"]
[Black "Szpar, Milosz"]
[WhiteFideId "1039784"]
[BlackFideId "1184989"]
[WhiteElo "2609"]
[BlackElo "2447"]
[Result "0-1"]
[Round "10"]
[TimeControl "180+1"]
[Date "2022.03.01"]
[WhiteClock "0:00:39"]
[BlackClock "0:00:18"]

1. b3 {[%clk 0:03:00]}  d5 {[%clk 0:02:58]} 2. Bb2 {[%clk 0:03:01]}  Bg4 {[%clk 0:02:58]} 3. Nf3 {[%clk 0:03:01]}  Nd7 {[%clk 0:02:58]} 4. g3 {[%clk 0:03:01]}  e6 {[%clk 0:02:58]} 5. Bg2 {[%clk 0:03:01]}  Ngf6 {[%clk 0:02:58]} 6. c4 {[%clk 0:03:01]}  Bd6 {[%clk 0:02:57]} 7. O-O {[%clk 0:03:02]}  O-O {[%clk 0:02:57]} 8. d3 {[%clk 0:03:02]}  c6 {[%clk 0:02:58]} 9. Nbd2 {[%clk 0:03:02]}  Qe7 {[%clk 0:02:57]} 10. a3 {[%clk 0:03:02]}  e5 {[%clk 0:02:57]} 11. h3 {[%clk 0:03:01]}  Bh5 {[%clk 0:02:57]} 12. Nh4 {[%clk 0:03:02]}  Bg6 {[%clk 0:02:49]} 13. b4 {[%clk 0:02:58]}  Qe6 {[%clk 0:02:43]} 14. e4 {[%clk 0:02:54]}  dxe4 {[%clk 0:02:37]} 15. dxe4 {[%clk 0:02:54]}  a5 {[%clk 0:02:37]} 16. c5 {[%clk 0:02:53]}  Bc7 {[%clk 0:02:37]} 17. Qc2 {[%clk 0:02:45]}  Rfd8 {[%clk 0:02:36]} 18. Nc4 {[%clk 0:02:38]}  Nb8 {[%clk 0:02:25]} 19. Nf5 {[%clk 0:02:36]}  axb4 {[%clk 0:02:24]} 20. axb4 {[%clk 0:02:34]}  Rxa1 {[%clk 0:02:25]} 21. Rxa1 {[%clk 0:02:34]}  Na6 {[%clk 0:02:25]} 22. Ra4 {[%clk 0:02:20]}  Ne8 {[%clk 0:02:08]} 23. h4 {[%clk 0:02:17]}  h5 {[%clk 0:01:59]} 24. Bh3 {[%clk 0:02:17]}  Qf6 {[%clk 0:01:55]} 25. Bc1 {[%clk 0:02:17]}  Bxf5 {[%clk 0:01:49]} 26. Bxf5 {[%clk 0:02:17]}  Qe7 {[%clk 0:01:44]} 27. Bg5 {[%clk 0:02:17]}  f6 {[%clk 0:01:44]} 28. Be3 {[%clk 0:02:17]}  Qf7 {[%clk 0:01:43]} 29. Na5 {[%clk 0:02:02]}  Bxa5 {[%clk 0:01:40]} 30. Rxa5 {[%clk 0:02:01]}  Nec7 {[%clk 0:01:37]} 31. Kh2 {[%clk 0:01:54]}  Nb5 {[%clk 0:01:34]} 32. Qb2 {[%clk 0:01:49]}  Rd1 {[%clk 0:01:29]} 33. Ra1 {[%clk 0:01:36]}  Rxa1 {[%clk 0:01:25]} 34. Qxa1 {[%clk 0:01:37]}  g6 {[%clk 0:01:25]} 35. Bc8 {[%clk 0:01:35]}  Kg7 {[%clk 0:01:13]} 36. Qa5 {[%clk 0:01:33]}  Na7 {[%clk 0:01:05]} 37. Bh3 {[%clk 0:01:30]}  Qc7 {[%clk 0:01:04]} 38. Qa4 {[%clk 0:01:25]}  Nb5 {[%clk 0:01:03]} 39. Qb3 {[%clk 0:01:17]}  Qd8 {[%clk 0:00:59]} 40. Qc4 {[%clk 0:01:10]}  Nac7 {[%clk 0:00:56]} 41. Kg2 {[%clk 0:01:03]}  Na3 {[%clk 0:00:54]} 42. Qb3 {[%clk 0:01:03]}  Nab5 {[%clk 0:00:55]} 43. Qa2 {[%clk 0:01:03]}  Na6 {[%clk 0:00:53]} 44. Qa5 {[%clk 0:00:57]}  Qxa5 {[%clk 0:00:46]} 45. bxa5 {[%clk 0:00:58]}  Na7 {[%clk 0:00:30]} 46. f4 {[%clk 0:00:54]}  exf4 {[%clk 0:00:30]} 47. gxf4 {[%clk 0:00:54]}  Kf7 {[%clk 0:00:30]} 48. Kf3 {[%clk 0:00:52]}  Ke7 {[%clk 0:00:27]} 49. e5 {[%clk 0:00:45]}  f5 {[%clk 0:00:25]} 50. Bf1 {[%clk 0:00:42]}  Nc7 {[%clk 0:00:20]} 51. Bc4 {[%clk 0:00:41]}  Nab5 {[%clk 0:00:17]} 52. Ke2 {[%clk 0:00:41]}  Nc3+ {[%clk 0:00:17]} 53. Kd3 {[%clk 0:00:41]}  N3d5 {[%clk 0:00:17]} 54. Bd2 {[%clk 0:00:38]}  Ne6 {[%clk 0:00:17]} 55. Bxd5 {[%clk 0:00:38]}  cxd5 {[%clk 0:00:18]} 56. c6 {[%clk 0:00:38]}  bxc6 {[%clk 0:00:18]} 57. Bb4+ {[%clk 0:00:39]}  c5 {[%clk 0:00:18]} 58. a6 {[%clk 0:00:39]}  cxb4 {[%clk 0:00:18]} 0-1


[Site "https://www.chess.com"]

[Event "Titled Tuesday Blitz March 01 Early 2022"]
[White "Voege, Tobias"]
[Black "Vlassov, Nikolai"]
[WhiteFideId "1270513"]
[BlackFideId "4103360"]
[WhiteElo "2335"]
[BlackElo "2407"]
[Result "1-0"]
[Round "10"]
[TimeControl "180+1"]
[Date "2022.03.01"]
[WhiteClock "0:00:06"]
[BlackClock "0:00:04"]

1. e4 {[%clk 0:03:00]}  Nc6 {[%clk 0:02:59]} 2. d4 {[%clk 0:02:54]}  d5 {[%clk 0:02:59]} 3. exd5 {[%clk 0:02:52]}  Qxd5 {[%clk 0:02:59]} 4. Nf3 {[%clk 0:02:52]}  Bg4 {[%clk 0:02:59]} 5. c3 {[%clk 0:02:49]}  Bxf3 {[%clk 0:02:58]} 6. Qxf3 {[%clk 0:02:48]}  Qxf3 {[%clk 0:02:58]} 7. gxf3 {[%clk 0:02:48]}  O-O-O {[%clk 0:02:55]} 8. f4 {[%clk 0:02:44]}  e6 {[%clk 0:02:49]} 9. Be3 {[%clk 0:02:42]}  Nh6 {[%clk 0:02:48]} 10. Nd2 {[%clk 0:02:38]}  Nf5 {[%clk 0:02:43]} 11. Nf3 {[%clk 0:02:27]}  Bd6 {[%clk 0:02:38]} 12. Ne5 {[%clk 0:02:24]}  Bxe5 {[%clk 0:02:28]} 13. fxe5 {[%clk 0:02:25]}  Nxe3 {[%clk 0:02:23]} 14. fxe3 {[%clk 0:02:24]}  f6 {[%clk 0:02:19]} 15. exf6 {[%clk 0:02:24]}  gxf6 {[%clk 0:02:19]} 16. Bh3 {[%clk 0:02:24]}  f5 {[%clk 0:02:05]} 17. Rg1 {[%clk 0:02:22]}  Rhg8 {[%clk 0:02:04]} 18. Ke2 {[%clk 0:02:17]}  Ne7 {[%clk 0:01:59]} 19. e4 {[%clk 0:02:13]}  Kd7 {[%clk 0:01:58]} 20. exf5 {[%clk 0:02:03]}  exf5 {[%clk 0:01:55]} 21. Kf3 {[%clk 0:01:58]}  Ke6 {[%clk 0:01:49]} 22. Rge1+ {[%clk 0:01:49]}  Kf6 {[%clk 0:01:49]} 23. Re5 {[%clk 0:01:49]}  Rd5 {[%clk 0:01:38]} 24. Rae1 {[%clk 0:01:38]}  Rxe5 {[%clk 0:01:37]} 25. Rxe5 {[%clk 0:01:39]}  Rg5 {[%clk 0:01:32]} 26. Ra5 {[%clk 0:01:35]}  a6 {[%clk 0:01:30]} 27. Rc5 {[%clk 0:01:32]}  c6 {[%clk 0:01:29]} 28. Bf1 {[%clk 0:01:26]}  Ng6 {[%clk 0:01:15]} 29. Kf2 {[%clk 0:01:13]}  Nf4 {[%clk 0:01:07]} 30. Kf3 {[%clk 0:01:11]}  Ne6 {[%clk 0:01:03]} 31. Re5 {[%clk 0:01:09]}  Rg1 {[%clk 0:00:55]} 32. Kf2 {[%clk 0:01:03]}  Rg5 {[%clk 0:00:46]} 33. Re3 {[%clk 0:01:00]}  Nf4 {[%clk 0:00:24]} 34. a4 {[%clk 0:00:51]}  Nd5 {[%clk 0:00:20]} 35. Rf3 {[%clk 0:00:48]}  f4 {[%clk 0:00:19]} 36. Rh3 {[%clk 0:00:41]}  h5 {[%clk 0:00:18]} 37. Be2 {[%clk 0:00:40]}  Kg6 {[%clk 0:00:18]} 38. Bd3+ {[%clk 0:00:36]}  Kf6 {[%clk 0:00:17]} 39. Rf3 {[%clk 0:00:33]}  Rg4 {[%clk 0:00:17]} 40. h3 {[%clk 0:00:29]}  Rh4 {[%clk 0:00:15]} 41. Bf1 {[%clk 0:00:27]}  Kg5 {[%clk 0:00:14]} 42. Bc4 {[%clk 0:00:16]}  Ne3 {[%clk 0:00:14]} 43. Be6 {[%clk 0:00:16]}  Nd1+ {[%clk 0:00:14]} 44. Ke1 {[%clk 0:00:15]}  Nxb2 {[%clk 0:00:15]} 45. a5 {[%clk 0:00:13]}  Kf6 {[%clk 0:00:11]} 46. Bc8 {[%clk 0:00:13]}  Nc4 {[%clk 0:00:10]} 47. Bxb7 {[%clk 0:00:13]}  Nxa5 {[%clk 0:00:11]} 48. Bxa6 {[%clk 0:00:13]}  Kf5 {[%clk 0:00:11]} 49. Bd3+ {[%clk 0:00:12]}  Ke6 {[%clk 0:00:11]} 50. c4 {[%clk 0:00:12]}  Nb3 {[%clk 0:00:10]} 51. Bf5+ {[%clk 0:00:08]}  Kxf5 {[%clk 0:00:10]} 52. Rxb3 {[%clk 0:00:09]}  Ke4 {[%clk 0:00:09]} 53. d5 {[%clk 0:00:09]}  cxd5 {[%clk 0:00:09]} 54. c5 {[%clk 0:00:09]}  Ke5 {[%clk 0:00:07]} 55. Rc3 {[%clk 0:00:07]}  f3 {[%clk 0:00:04]} 56. c6 {[%clk 0:00:06]} 1-0


[Site "https://www.chess.com"]